[Event "FRA-ch Teams Top 16-A 2022"]
[Site "Chartres"]
[Date "2022.06.13"]
[Round "5.22"]
[White "Abergel, Thal"]
[Black "David, Alberto"]
[Result "1-0"]
[ECO "B12"]
[WhiteElo "2378"]
[BlackElo "2520"]
[Annotator "TA"]
[PlyCount "65"]
[EventDate "2022.06.09"]
[EventType "team-tourn"]
[EventCountry "FRA"]
[SourceTitle "playchess.com"]
[Source "ChessBase"]
[SourceQuality "1"]
[TimeControl "40/5400+30:1800+30"]

{[%evp 11,65,6,14,-13,17,25,29,12,43,46,64,49,75,69,119,86,114,109,112,102,107,103,100,40,39,40,41,26,29,43,58,0,0,-7,-7,-12,-12,-8,7,8,16,0,125,112,113,110,29982,89,29983,29984,29983,29985,29983,29984,29998,29999]} 1. e4 {[%emt 0:00:07]} c6 {[%emt 0:00:26]} 2. d4 {[%emt 0:00:54]} d5 {[%emt 0:00:07]} 3. e5 {[%emt 0:00:15]} Bf5 {[%emt 0:00:25]} 4. h4 {[%emt 0:00:20]} h5 {[%emt 0:01:55]} 5. Bd3 {[%emt 0:00:38]} Bxd3 {[%emt 0:00:25]} 6. Qxd3 {[%emt 0:00:06]} e6 {[%emt 0:00:20]} 7. Bg5 {[%emt 0:01:59] B12: Caro-Kann: Advance Variation.} Qa5+ {[%emt 0:00:32]} (7... Qb6 $5 {[%cal Rb6b2]}) 8. Nd2 {[%emt 0:00:43]} Qa6 {[%emt 0:00:17]} 9. c4 {[%emt 0:00:36] White has an edge.} Nd7 {[%emt 0:05:12]} 10. b3 {[%emt 0:05:55]} Bb4 {[%emt 0:08:10]} 11. Ne2 {[%emt 0:06:56]} Ne7 {[%emt 0:42:14]} 12. O-O {[%emt 0:01:38]} Bxd2 {[%emt 0:01:34]} (12... Nf5 $14) 13. Bxe7 {[%emt 0:25:03]} ({Much worse is} 13. Bxd2 $6 c5 $11) 13... Kxe7 {[%emt 0:00:15]} 14. Qxd2 {[%emt 0:00:03]} dxc4 {[%emt 0:00:05]} 15. Qb4+ {[%emt 0:01:30]} c5 {[%emt 0:00:06]} 16. dxc5 {[%emt 0:00:10] aiming for c6+.} Qc6 {[%emt 0:00:32]} 17. Nd4 {[%emt 0:14:08]} ({But not} 17. Qd2 $6 Qxc5 18. Rac1 Rhc8 $11) (17. Rad1 $16 Rac8 18. Qxc4) 17... Qxc5 $14 {[%emt 0:00:44] [#]} 18. Qxb7 {[%emt 0:00:14] [#]} Rac8 $146 {[%emt 0:08:03] [#] Inhibits Nc6+.} ({Predecessor:} 18... Qxd4 19. Rad1 Rhb8 20. Qc6 Rc8 21. Qxc8 Rxc8 22. Rxd4 cxb3 23. axb3 Rb8 24. Ra1 Nxe5 25. Rxa7+ {1-0 (44) Shkapenko,P (2424)-Bugayev,V Chess.com INT 2021}) 19. bxc4 $1 {[%emt 0:02:25] Black must now prevent Rad1.} Rc7 {[%emt 0:10:34]} (19... Qxd4 $2 20. Rad1 Rb8 21. Qxb8 (21. Rxd4 $2 {perishes.} Rxb7 22. f4 Rc8 $19) 21... Qxf2+ 22. Kxf2 $18) (19... Qxc4 20. Rad1) 20. Qe4 {[%emt 0:01:32]} Rb8 {[%emt 0:01:58]} 21. Rac1 {[%emt 0:06:27]} (21. Rfd1 $14) 21... Rb4 $11 {[%emt 0:01:46]} 22. Nf3 {[%emt 0:01:21]} Rxc4 {[%emt 0:07:57]} 23. Rxc4 {[%emt 0:00:23]} Qxc4 {[%emt 0:00:03]} 24. Qe3 {[%emt 0:00:47]} Kf8 {[%emt 0:03:28]} 25. Qg5 {[%emt 0:02:09][%cal Rg5d8]} Kg8 {[%emt 0:00:02]} 26. Rd1 {[%emt 0:05:02]} Rb7 {[%emt 0:00:13]} (26... g6 $11 {keeps the balance.}) 27. Rc1 $16 {[%emt 0:05:43]} Qa4 {[%emt 0:00:38]} 28. Qxh5 {[%emt 0:05:46]} Qxa2 $2 {[%emt 0:00:14][%mdl 8192]} (28... Nf8 $16) 29. Rc8+ {[%emt 0:02:07]} Nf8 {[%emt 0:00:04] [#]} 30. Ng5 $1 {[%emt 0:00:16][%csl Gg5][%cal Rh5h7] White mates.} Qa1+ {[%emt 0:02:48]} 31. Kh2 {[%emt 0:00:07][%csl Gg5][%cal Rh5h7]} Qxe5+ {[%emt 0:00:04]} 32. g3 {[%emt 0:00:06][%csl Gg5][%cal Rh5h7]} Qf5 {[%emt 0:00:05] [#]} 33. Qh8+ $3 {[%emt 0:00:04][%mdl 576] Skewer, Decoy, Back Rank.  Weighted Error Value: White=0.09 (flawless) /Black=0.41} 1-0

[Event "FRA-ch Teams Top 16-A 2022"]
[Site "Chartres"]
[Date "2022.06.13"]
[Round "5.23"]
[White "Velten, Paul"]
[Black "Mekhane, Adam"]
[Result "1-0"]
[ECO "E14"]
[WhiteElo "2492"]
[BlackElo "2276"]
[Annotator "TA"]
[PlyCount "57"]
[EventDate "2022.06.09"]
[EventType "team-tourn"]
[EventCountry "FRA"]
[SourceTitle "playchess.com"]
[Source "ChessBase"]
[SourceQuality "1"]
[TimeControl "40/5400+30:1800+30"]

{[%evp 12,57,33,27,29,27,55,52,45,43,37,41,54,45,37,28,50,-59,-53,-39,0,-23,143,128,170,188,225,300,297,294,274,255,421,414,504,460,575,577,508,489,666,606,2091,1956,29989,7001,29992,29993]} 1. d4 {[%emt 0:01:15]} Nf6 {[%emt 0:00:15]} 2. c4 {[%emt 0:01:33]} e6 {[%emt 0:02:20]} 3. Nf3 {[%emt 0:02:18]} Bb4+ {[%emt 0:00:39]} 4. Nbd2 {[%emt 0:02:08]} b6 {[%emt 0:01:30]} 5. a3 {[%emt 0:01:56]} Bxd2+ {[%emt 0:01:03]} 6. Qxd2 {[%emt 0:00:11]} Bb7 {[%emt 0:00:16]} 7. e3 {[%emt 0:00:10]} Qe7 {[%emt 0:01:00] E14: Queen's Indian: Classical Variation (4 e3).} 8. Be2 {[%emt 0:01:50]} g5 {[%emt 0:02:34] [#]} 9. O-O $146 {[%emt 0:05:59]} ({Predecessor:} 9. h3 Rg8 10. Qc2 d6 11. Bd2 Nbd7 12. O-O-O h5 13. Bc3 g4 14. hxg4 hxg4 15. Nh4 {1-0 (34) Barbot,P (2453)-Bellahcene,B (2481) Agen 2017}) 9... g4 {[%emt 0:00:48] White is slightly better.} 10. Ne5 {[%emt 0:00:31]} d6 {[%emt 0:07:55]} 11. Nd3 {[%emt 0:03:28][%cal Be5d3,Bd3e1,Be1g2,Bg2h4][%mdl 32]} Nbd7 {[%emt 0:06:20]} 12. b4 {[%emt 0:03:48]} h5 {[%emt 0:12:30]} 13. Bb2 {[%emt 0:03:54]} Rg8 {[%emt 0:06:13]} 14. f4 {[%emt 0:06:19]} (14. c5 $14) 14... Ne4 $15 {[%emt 0:10:29]} 15. Qc2 {[%emt 0:01:52][%cal Oc4c5]} Qh4 {[%emt 0:06:26][%cal Oh4h3]} 16. Ne1 {[%emt 0:31:33][%cal Od4d5]} Ke7 $2 {[%emt 0:14:28]} ({Much less strong is} 16... g3 17. h3 $14) ({Black should play} 16... c5 $11) 17. d5 $1 $16 {[%emt 0:01:08]} f5 {[%emt 0:03:36]} 18. Bd3 $1 {[%emt 0:01:52] The board is on fire.} exd5 {[%emt 0:04:06]} 19. Bxe4 {[%emt 0:03:01]} dxe4 {[%emt 0:01:19]} 20. g3 {[%emt 0:00:06]} Qh3 {[%emt 0:00:04] [#]} 21. Ng2 {[%emt 0:00:05] Against h4} h4 $2 {[%emt 0:05:27]} (21... Rgf8 22. Nh4 Kd8) 22. Nxh4 $18 {[%emt 0:00:36]} Raf8 {[%emt 0:00:04]} 23. Rfd1 {[%emt 0:00:53]} Rf7 {[%emt 0:01:11]} 24. c5 {[%emt 0:00:40]} bxc5 {[%emt 0:00:44]} 25. Qb3 {[%emt 0:01:46] Threatens to win with Rac1.} Rgf8 {[%emt 0:04:13]} (25... d5 26. Rxd5 Rgf8 {[#]} 27. bxc5 $1 Bxd5 28. Qxd5 Qxh4 29. gxh4) 26. Rac1 {[%emt 0:00:17] Strongly threatening bxc5.} Ba6 {[%emt 0:00:50]} 27. bxc5 {[%emt 0:00:34]} Rb8 {[%emt 0:04:00]} 28. cxd6+ {[%emt 0:00:32]} (28. Ng6+ $142 Ke8 29. Qe6+ Kd8 30. Qxf7 Qxh2+ 31. Kxh2 Rxb2+ 32. Kh1 c6 33. Rxd6) 28... cxd6 {[%emt 0:00:01]} 29. Ng6+ {[%emt 0:00:17] Weighted Error Value: White=0.13 (very precise) /Black=1.07} 1-0

[Event "FRA-ch Teams Top 16-A 2022"]
[Site "Chartres"]
[Date "2022.06.13"]
[Round "5.24"]
[White "Hernandez, Lara"]
[Black "Alexieva, Silvia"]
[Result "0-1"]
[ECO "D11"]
[WhiteElo "1965"]
[BlackElo "2219"]
[Annotator "RC"]
[PlyCount "104"]
[EventDate "2022.06.09"]
[EventType "team-tourn"]
[EventCountry "FRA"]
[SourceTitle "playchess.com"]
[Source "ChessBase"]
[SourceQuality "1"]
[TimeControl "40/5400+30:1800+30"]

1. d4 {[%emt 0:01:00]} Nf6 {[%emt 0:00:15]} 2. Nf3 {[%emt 0:00:04]} d5 {[%emt 0:00:25]} 3. g3 {[%emt 0:00:08]} Bf5 {[%emt 0:00:43]} 4. Bg2 {[%emt 0:00:23]} h6 {[%emt 0:00:35]} 5. c4 {[%emt 0:00:36]} c6 {[%emt 0:01:20]} 6. Nc3 {[%emt 0:01:08]} e6 {[%emt 0:00:49]} 7. Qb3 {[%emt 0:00:33]} Qb6 {[%emt 0:00:42]} 8. c5 {[%emt 0:00:41]} Qxb3 {[%emt 0:00:21]} 9. axb3 {[%emt 0:00:03]} Be7 {[%emt 0:00:31]} 10. b4 {[%emt 0:01:15]} O-O {[%emt 0:00:47]} 11. h3 {[%emt 0:03:34]} a6 {[%emt 0:06:57]} 12. g4 {[%emt 0:02:31]} Bh7 {[%emt 0:01:15]} 13. Bf4 {[%emt 0:01:19]} Nbd7 {[%emt 0:00:39]} 14. Nd2 {[%emt 0:04:00]} Rfe8 {[%emt 0:06:11]} 15. Bg3 {[%emt 0:15:28]} Bd8 {[%emt 0:06:41]} 16. f4 {[%emt 0:01:09]} Bc7 {[%emt 0:00:32]} 17. O-O {[%emt 0:01:10]} g5 {[%emt 0:10:55]} 18. e3 {[%emt 0:07:59]} Kg7 {[%emt 0:03:13]} 19. Kh2 {[%emt 0:02:27]} Bd3 {[%emt 0:04:40]} 20. Rfd1 {[%emt 0:06:10]} Rh8 {[%emt 0:09:28]} 21. Nf3 {[%emt 0:04:22]} Be4 {[%emt 0:05:27]} 22. Ne5 {[%emt 0:02:29]} Rad8 {[%emt 0:03:18]} 23. Rf1 {[%emt 0:02:25]} Bxg2 {[%emt 0:08:13]} 24. Kxg2 {[%emt 0:00:29]} Nxe5 {[%emt 0:00:23]} 25. fxe5 {[%emt 0:08:22]} Ne4 {[%emt 0:05:42]} 26. Nxe4 {[%emt 0:03:07]} dxe4 {[%emt 0:00:05]} 27. h4 {[%emt 0:02:45]} Rd7 {[%emt 0:02:06]} 28. Rh1 {[%emt 0:02:55]} Rdd8 {[%emt 0:04:01]} 29. Rh2 {[%emt 0:02:24]} Rdg8 {[%emt 0:00:43]} 30. Kf2 {[%emt 0:01:52]} Bd8 {[%emt 0:00:51]} 31. Rah1 {[%emt 0:02:01]} Be7 {[%emt 0:01:36]} 32. Ke2 {[%emt 0:03:06]} Bd8 {[%emt 0:00:11]} 33. Kd2 {[%emt 0:00:55]} Be7 {[%emt 0:00:46]} 34. Kc3 {[%emt 0:00:20]} Bd8 {[%emt 0:03:43]} 35. b3 {[%emt 0:01:28]} Be7 {[%emt 0:00:43]} 36. Kb2 {[%emt 0:08:23]} Bd8 {[%emt 0:01:06]} 37. Ka3 {[%emt 0:02:17]} h5 {[%emt 0:05:35]} 38. gxh5 {[%emt 0:04:07]} Rxh5 {[%emt 0:00:07]} 39. hxg5 {[%emt 0:00:16]} Rxh2 {[%emt 0:00:38]} 40. Rxh2 {[%emt 0:00:18]} Bxg5 {[%emt 0:01:53]} 41. Bf4 {[%emt 0:32:25]} Bxf4 {[%emt 0:31:38]} 42. exf4 {[%emt 0:02:19]} f5 {[%emt 0:00:13]} 43. Ka4 {[%emt 0:00:00]} Rd8 {[%emt 0:00:00]} 44. Rd2 {[%emt 0:00:00]} Kg6 {[%emt 0:00:00]} 45. Ka5 {[%emt 0:00:00]} Kh5 {[%emt 0:00:00]} 46. Kb6 {[%emt 0:00:00]} Rd7 {[%emt 0:00:00]} 47. Rg2 {[%emt 0:00:00]} Kh4 {[%emt 0:00:00]} 48. Rg6 {[%emt 0:00:00]} Re7 {[%emt 0:00:00]} 49. Ka7 {[%emt 0:00:00]} Kh3 {[%emt 0:00:00]} 50. Kb8 {[%emt 0:00:00]} Kh2 {[%emt 0:00:00]} 51. Kc8 {[%emt 0:00:00]} e3 {[%emt 0:00:00]} 52. Kd8 {[%emt 0:01:02]} Rh7 {[%emt 0:00:00]} 0-1

[Event "FRA-ch Teams Top 16-A 2022"]
[Site "Chartres"]
[Date "2022.06.13"]
[Round "5.25"]
[White "Ganguly, Surya Shekhar"]
[Black "Song, Julien"]
[Result "1-0"]
[ECO "C54"]
[WhiteElo "2616"]
[BlackElo "2388"]
[Annotator "TA"]
[PlyCount "61"]
[EventDate "2022.06.09"]
[EventType "team-tourn"]
[EventCountry "FRA"]
[SourceTitle "playchess.com"]
[Source "ChessBase"]
[SourceQuality "1"]
[TimeControl "40/5400+30:1800+30"]

{[%evp 13,61,43,39,20,21,22,34,17,16,18,23,31,35,36,80,89,83,91,76,69,120,92,175,156,163,146,124,158,125,125,226,143,122,130,269,201,672,652,733,702,656,629,29964,29960,29961,29962,29961,29963,5473,2539]} 1. e4 {[%emt 0:00:14]} e5 {[%emt 0:00:26]} 2. Nf3 {[%emt 0:00:09]} Nc6 {[%emt 0:01:02]} 3. Bc4 {[%emt 0:00:13]} Nf6 {[%emt 0:00:50]} 4. d3 {[%emt 0:00:08]} Bc5 {[%emt 0:00:43]} 5. O-O {[%emt 0:00:11]} O-O {[%emt 0:00:38]} 6. c3 {[%emt 0:00:19]} d5 {[%emt 0:01:30]} 7. exd5 {[%emt 0:00:28]} Nxd5 {[%emt 0:00:15]} 8. a4 {[%emt 0:00:05] C54: Giuoco Piano: 4 c3 Nf6, main lines with 5 d4 and 5 d3.} a5 {[%emt 0:00:55]} 9. Re1 {[%emt 0:04:08]} Bg4 {[%emt 0:03:11]} 10. Nbd2 {[%emt 0:03:31] White is slightly better.} Nb6 {[%emt 0:01:27]} 11. Bb5 {[%emt 0:00:22]} Bd6 {[%emt 0:02:07]} 12. Ne4 {[%emt 0:01:47] [#]} h6 $146 {[%emt 0:23:25]} ({Predecessor:} 12... f5 13. Qb3+ Kh8 14. Nxd6 cxd6 15. Ng5 Qc7 16. Ne6 Qf7 17. Ra3 Rfc8 18. Be3 Nd7 {½-½ (40) Navara,D (2693)-Niemann,H (2637) Malmo 2022}) 13. h3 {[%emt 0:03:51]} Bxf3 {[%emt 0:04:39]} 14. Qxf3 {[%emt 0:00:08]} f5 {[%emt 0:00:56]} 15. Nxd6 {[%emt 0:02:18]} Qxd6 {[%emt 0:02:31]} 16. b3 {[%emt 0:02:03] [#] aiming for Ba3.} Qf6 {[%emt 0:09:49]} (16... Rf7 $14) 17. Ra2 $16 {[%emt 0:02:32][%cal Ba1a2,Ba2b2,Bb2e2][%mdl 32]} Qf7 {[%emt 0:13:23]} (17... Rad8 $16 {might work better.}) 18. Bxc6 {[%emt 0:06:56]} bxc6 {[%emt 0:00:31]} 19. Qxc6 {[%emt 0:03:23]} (19. Rxe5 Qxb3 20. Qe2 Qb1 $11) 19... Qxb3 {[%emt 0:04:07]} 20. Rb2 {[%emt 0:01:33]} Qf7 {[%emt 0:01:21]} 21. Rxe5 {[%emt 0:02:17]} f4 {[%emt 0:01:21]} (21... Rad8 $16) 22. f3 {[%emt 0:06:04] Rbb5 is the strong threat.} Rad8 {[%emt 0:09:13]} 23. Qe4 {[%emt 0:03:47] Black must now prevent Rbb5. White is more active.} (23. Rxa5 $6 Rxd3 24. Rf2 (24. Rd2 Re3 $11) 24... Qb3 $11) 23... Qf6 {[%emt 0:01:39] Loses the game.} (23... Qd7 $16) 24. Re2 {[%emt 0:01:51] [#] And now Ba3 would win.} ({But not} 24. Rxa5 $2 Qxc3 25. Rb4 (25. Qe6+ $2 Kh8 $19) 25... Qxc1+ $19) 24... Kh8 $2 {[%emt 0:05:21]} (24... Qd6 25. Bxf4 (25. Rxa5 Qxd3 26. Ba3 Rf7 $16) 25... Qxd3) 25. Ba3 $18 {[%emt 0:01:42]} Rf7 {[%emt 0:09:32]} 26. Be7 {[%emt 0:01:05]} Rxe7 {[%emt 0:00:07]} 27. Rxe7 {[%emt 0:00:07]} Qxc3 {[%emt 0:00:30]} 28. Re8+ {[%emt 0:00:28]} Rxe8 {[%emt 0:00:04]} 29. Qxe8+ {[%emt 0:00:10]} Kh7 {[%emt 0:00:01]} 30. Qe4+ {[%emt 0:00:11]} Kg8 {[%emt 0:02:47]} 31. Qe6+ {[%emt 0:00:23] Weighted Error Value: White=0.13 (very precise) /Black=1.06} 1-0

[Event "FRA-ch Teams Top 16-A 2022"]
[Site "Chartres"]
[Date "2022.06.13"]
[Round "5.26"]
[White "Iglesias, Yosha"]
[Black "Visakh N R"]
[Result "0-1"]
[ECO "A07"]
[WhiteElo "2202"]
[BlackElo "2506"]
[Annotator "TA"]
[PlyCount "64"]
[EventDate "2022.06.09"]
[EventType "team-tourn"]
[EventCountry "FRA"]
[SourceTitle "playchess.com"]
[Source "ChessBase"]
[SourceQuality "1"]
[TimeControl "40/5400+30:1800+30"]

{[%evp 12,64,7,4,10,0,44,29,50,27,66,-83,-64,-65,-1,-17,-14,-77,-72,-59,-18,-28,-29,-40,-52,-242,-253,-225,-227,-243,-234,-265,-252,-267,-243,-409,-410,-486,-483,-486,-378,-429,-419,-533,-517,-496,-509,-670,-582,-989,-916,-1083,-1068,-943,-883]} 1. Nf3 {[%emt 0:00:04]} d5 {[%emt 0:01:32]} 2. g3 {[%emt 0:00:29]} c6 {[%emt 0:01:32]} 3. Bg2 {[%emt 0:00:09]} Bg4 {[%emt 0:00:18]} 4. O-O {[%emt 0:00:52]} Nd7 {[%emt 0:00:55]} 5. h3 {[%emt 0:01:17]} Bh5 {[%emt 0:00:14]} 6. d3 {[%emt 0:02:02]} Ngf6 {[%emt 0:02:34]} 7. c4 {[%emt 0:09:47]} dxc4 {[%emt 0:10:44] A07: Réti Opening: New York and Capablanca Systems.} 8. dxc4 {[%emt 0:00:07]} e5 {[%emt 0:00:58]} 9. Nc3 {[%emt 0:00:47]} Qc7 {[%emt 0:03:08] White has an edge.} 10. Nh4 {[%emt 0:04:32]} Bg6 {[%emt 0:10:08] [#]} 11. f4 $146 {[%emt 0:09:22]} (11. Nxg6 $14 {stays ahead.} hxg6 12. b3) ({Predecessor:} 11. Nxg6 hxg6 12. Qc2 Be7 13. Rb1 a5 14. a3 Nc5 15. b4 axb4 16. axb4 Ne6 17. e3 {1-0 (45) Oparin,G (2652)-Le,T (2501) Chess.com INT 2020}) 11... exf4 {[%emt 0:00:48]} 12. Bxf4 {[%emt 0:05:44]} Qd8 {[%emt 0:00:29]} (12... Qb6+ $15 13. Kh1 Nc5) 13. Nxg6 {[%emt 0:04:16]} hxg6 {[%emt 0:01:20]} 14. e4 {[%emt 0:00:25]} (14. e3 $11 {remains equal.}) 14... Nh5 {[%emt 0:01:38]} 15. e5 {[%emt 0:06:10][%cal Oe5e6]} Nc5 {[%emt 0:24:25]} 16. Qf3 {[%emt 0:00:54] [#] Hoping for Rad1.} Nxf4 {[%emt 0:00:59]} ({Don't take} 16... Nd3 17. Rad1 Nhxf4 18. gxf4 Qd4+ 19. Kh2 $18) 17. Qxf4 {[%emt 0:00:39][%csl Gf1][%cal Rf4f7]} Qc7 {[%emt 0:00:32]} 18. Nd5 $2 {[%emt 0:07:08] This move loses the game for White.} cxd5 $19 {[%emt 0:01:47]} 19. cxd5 {[%emt 0:00:07] [#]} Nd3 {[%emt 0:18:57][%csl LRb2,LRe5,LRf4] Prevents Rac1.} 20. Qa4+ {[%emt 0:02:54]} Kd8 {[%emt 0:02:39]} 21. d6 {[%emt 0:06:10]} Qb6+ {[%emt 0:01:24]} 22. Kh1 {[%emt 0:13:51]} Nxe5 {[%emt 0:00:30]} 23. Rae1 $2 {[%emt 0:00:30]} (23. Rad1 {keeps fighting.} Bxd6 24. Rd5) 23... Bxd6 {[%emt 0:00:30]} 24. Rxe5 {[%emt 0:00:30]} Bxe5 {[%emt 0:00:30]} 25. Rxf7 {[%emt 0:24:14][%csl Gf7][%cal Ra4d7]} Qd6 {[%emt 0:14:29] Prevents Qd7+.} 26. Rf1 {[%emt 0:00:00]} Qe6 {[%emt 0:00:00]} 27. Qa5+ {[%emt 0:00:00]} Bc7 {[%emt 0:01:00] Black is clearly winning.} 28. Qg5+ {[%emt 0:00:00]} Kc8 {[%emt 0:00:00]} 29. Rc1 {[%emt 0:00:00]} Kb8 {[%emt 0:00:00]} 30. Rxc7 Kxc7 31. Qf4+ {[%emt 0:02:13]} Qd6 {[%emt 0:00:00] aiming for ...Qxf4.} 32. Qf7+ {[%emt 0:00:11]} Kd8 {[%emt 0:00:00] Weighted Error Value: White=0.68/Black=0.16 (very precise)} 0-1

[Event "FRA-ch Teams Top 16-A 2022"]
[Site "Chartres"]
[Date "2022.06.13"]
[Round "5.27"]
[White "Postny, Evgeny"]
[Black "Sohier, Julien"]
[Result "1-0"]
[ECO "D20"]
[WhiteElo "2563"]
[BlackElo "2218"]
[Annotator "TA"]
[PlyCount "128"]
[EventDate "2022.06.09"]
[EventType "team-tourn"]
[EventCountry "FRA"]
[SourceTitle "playchess.com"]
[Source "ChessBase"]
[SourceQuality "1"]
[TimeControl "40/5400+30:1800+30"]

{[%evp 14,128,25,38,31,29,40,36,32,34,51,45,17,-50,-45,-100,-108,-141,-145,-132,0,0,0,0,0,0,0,0,20,0,62,66,68,70,79,89,92,0,0,0,0,0,0,0,21,12,16,10,15,12,20,6,6,6,11,6,6,6,6,6,7,6,11,9,23,6,8,6,11,0,13,11,13,13,13,6,6,6,6,6,6,6,6,6,12,16,52,54,60,35,35,35,35,35,59,68,78,56,101,92,190,137,156,32,39,45,151,124,191,191,3534,1730,5345,4618,29984,29985,29988]} 1. d4 {[%emt 0:00:05]} d5 {[%emt 0:00:16]} 2. c4 {[%emt 0:00:21]} dxc4 {[%emt 0:02:01]} 3. e4 {[%emt 0:00:14]} e5 {[%emt 0:05:10]} 4. Nf3 {[%emt 0:00:08]} exd4 {[%emt 0:00:06]} 5. Bxc4 {[%emt 0:00:08]} Nc6 {[%emt 0:01:17]} 6. O-O {[%emt 0:00:13]} Be6 {[%emt 0:00:07]} 7. Bxe6 {[%emt 0:00:30]} fxe6 {[%emt 0:00:04]} 8. Qb3 {[%emt 0:00:04][%csl LRb7,LRe6]} Qd7 {[%emt 0:00:10] D20: Queen's Gambit Accepted: 3 e3 and 3 e4.} 9. Qxb7 {[%emt 0:00:07]} Rb8 {[%emt 0:00:05]} 10. Qa6 {[%emt 0:00:05]} Bd6 {[%emt 0:01:24] White is slightly better. 10...Nge7 is the modern continuation.} 11. Nbd2 {[%emt 0:00:34]} Nf6 {[%emt 0:03:51][%cal Bg8f6,Bf6h5,Bh5f4][%mdl 32]} 12. a3 {[%emt 0:04:29]} O-O {[%emt 0:00:18][%cal Od4d3] [#]} 13. h3 $146 {[%emt 0:05:41]} ({White should play} 13. b4 $11) ({Predecessor:} 13. b4 Ng4 14. Bb2 Nce5 15. h3 Nxf3+ 16. Nxf3 Rxf3 17. hxg4 Rf4 18. Qxa7 Rbf8 19. f3 {1-0 (67) Yu,Y (2709)-Wang,H (2763) Chess.com INT 2020}) 13... Nh5 $15 {[%emt 0:07:48]} 14. Ne1 {[%emt 0:02:10]} ({Only move:} 14. b4 $1 $15) 14... Nf4 $17 {[%emt 0:06:56] Strongly threatening ...Ne5.} 15. Ndf3 {[%emt 0:00:56]} Rb6 {[%emt 0:02:27]} 16. Qa4 {[%emt 0:02:49]} Qf7 {[%emt 0:04:13]} (16... Ne2+ $17 17. Kh1 Ne5 18. Qxd7 Nxd7) 17. Bxf4 $11 {[%emt 0:05:15]} ({Wrong is} 17. Nxd4 $2 Nxd4 18. Kh1 Nfe2 $19) 17... Qxf4 {[%emt 0:02:11]} ({Don't do} 17... Bxf4 18. Nxd4 Ne5 19. Rb1 $14) 18. Qc2 $1 {[%emt 0:00:22]} a5 {[%emt 0:19:21]} 19. Qe2 {[%emt 0:03:18]} Ne5 {[%emt 0:09:51][%cal Od4d3,Bc6e5,Be5g6,Bg6f4][%mdl 32]} 20. Nxd4 {[%emt 0:10:56]} Ng6 {[%emt 0:01:56][%csl Gd6][%cal Rf4h2]} (20... Nc6 $5 21. Ndf3 Ne5 $11) 21. Ndf3 {[%emt 0:06:08] Inhibits Qh2+. Nd3 is the strong threat.} Qf6 {[%emt 0:10:05]} (21... Ne5 $11) 22. Nd3 $14 {[%emt 0:00:41] aiming for e5.} Nf4 $1 {[%emt 0:01:27]} 23. Nxf4 {[%emt 0:00:31]} Rxb2 {[%emt 0:02:49] [#]} 24. Qa6 {[%emt 0:06:02]} Bxf4 {[%emt 0:06:18]} 25. Qxa5 {[%emt 0:00:42]} (25. Rad1 $16) 25... Rb3 $1 $11 {[%emt 0:01:07][%cal Ob3f3] White must now prevent ...Rxf3!} 26. Qh5 {[%emt 0:07:44]} g6 {[%emt 0:05:54]} 27. Qh4 {[%emt 0:04:40]} Qxh4 {[%emt 0:02:18]} 28. Nxh4 {[%emt 0:00:05]} Be5 {[%emt 0:00:09]} 29. Ra2 {[%emt 0:00:15]} Rf4 {[%emt 0:02:04]} 30. Nf3 {[%emt 0:00:19]} Rxe4 {[%emt 0:00:08]} 31. a4 {[%emt 0:01:37][%cal Ba3a4,Ba4a5][%mdl 32]} Rb6 {[%emt 0:01:03]} 32. a5 {[%emt 0:08:42]} Ra6 {[%emt 0:00:06]} 33. Rc1 {[%emt 0:00:09]} Bd6 {[%emt 0:01:49]} 34. Nd2 {[%emt 0:00:45]} Rb4 {[%emt 0:00:56]} 35. g3 {[%emt 0:00:58]} Rb5 {[%emt 0:01:14]} 36. Nc4 {[%emt 0:00:07]} Rc5 {[%emt 0:00:29]} 37. Rcc2 {[%emt 0:00:13]} Rb5 {[%emt 0:00:53]} 38. Kf1 {[%emt 0:01:28]} Kf7 {[%emt 0:00:16]} 39. Ke2 {[%emt 0:00:47]} Ke7 {[%emt 0:00:12]} 40. h4 {[%emt 0:01:34]} Kd7 {[%emt 0:01:02]} 41. Kd3 {[%emt 0:34:37]} ({Much weaker is} 41. Nxd6 cxd6 42. Rcb2 Raxa5 $17) 41... Rd5+ {[%emt 0:08:43]} 42. Ke4 {[%emt 0:00:00]} g5 {[%emt 0:01:39]} 43. hxg5 {[%emt 0:00:00]} Rxg5 {[%emt 0:00:15]} 44. Ra4 {[%emt 0:00:00]} h5 {[%emt 0:01:42]} 45. Kf3 {[%emt 0:00:00]} Rc5 {[%emt 0:01:09]} 46. Re2 {[%emt 0:00:00]} Rf5+ {[%emt 0:01:50]} 47. Kg2 {[%emt 0:00:00]} Rc5 {[%emt 0:01:39]} 48. Re4 {[%emt 0:00:00]} Kc6 {[%emt 0:03:42]} 49. f4 {[%emt 0:00:00]} Kb5 {[%emt 0:03:06]} 50. Nxd6+ {[%emt 0:00:00]} cxd6 $14 {[%emt 0:00:26][%mdl 4096] Endgame KRR-KRR} 51. Rab4+ {[%emt 0:00:00]} Kc6 {[%emt 0:03:38]} 52. Rxe6 {[%emt 0:00:00][%cal Ob4b6]} Raxa5 {[%emt 0:00:21]} 53. Rb2 {[%emt 0:00:00]} Rf5 {[%emt 0:01:30][%cal Oh5h4]} 54. Rh6 {[%emt 0:00:00]} Rac5 {[%emt 0:03:05]} 55. Kh3 {[%emt 0:00:00] And now Rd2 would win.} Rcd5 {[%emt 0:01:54] Against Rd2} 56. Rc2+ {[%emt 0:01:40]} Rc5 {[%emt 0:00:33]} (56... Kb5 $16) 57. Ra2 {[%emt 0:00:59]} (57. Rd2 $18) 57... Rcd5 {[%emt 0:00:43]} 58. Kh4 {[%emt 0:01:08] White is more active.} (58. Ra6+ $1 $16 Kd7 59. Rh7+ Ke6 60. Raa7) 58... Rd1 $1 {[%emt 0:01:07] ( -> ...Rh1+)} 59. Rh2 {[%emt 0:00:17] Prevents Rh1.} Rdd5 {[%emt 0:00:22] [#]} (59... Rg1 $1 $14) 60. Rg6 $1 $16 {[%emt 0:06:01]} Kd7 {[%emt 0:01:40] [#]} (60... Rf8 $16 {was worth a try.} 61. Rc2+ Kd7) 61. Rg5 $1 $18 {[%emt 0:03:31]} Rxg5 $2 {[%emt 0:00:49]} (61... Ke7 62. Kxh5 Rxg5+ 63. fxg5 Rd3) 62. fxg5 {[%emt 0:00:05][%cal Bf4g5,Bg5g6][%mdl 32]} Ke6 {[%emt 0:00:13]} 63. Rf2 {[%emt 0:00:52] Threatening mate with g6.} Rd3 {[%emt 0:01:18]} 64. g6 {[%emt 0:00:15]} Kd5 {[%emt 0:01:15] Weighted Error Value: White=0.12 (very precise) /Black=0.29 (precise)} 1-0